Workbook

Sheet AER adjustments
A1: BUSINESS HOURS ADJUSTMENTS
B2: Labour rates for 2020-21 ($June 021)
B3: Marsden Jacob | C3: Powercor | D3: Adjustment to labour category | E3: Labour weights for fee-based services | F3: Weighted adjustment
A4: Administrative officer | B4: 92.51 | C4: 112.815907 | D4: =IF(C4<=B4,0,B4/C4-1) -> -0.1799915236 | E4: 0.15 | F4: =E4*D4 -> -0.02699872855
A5: Field officer | B5: 171.34 | C5: 184.6091992 | D5: -0.07187723709 | E5: 0.85 | F5: -0.06109565153
A6: Technical specialist | B6: 171.34 | C6: 199.8399305 | D6: -0.142613793 | E6: 0 | F6: 0
A7: Engineer | B7: 150.33 | C7: 178.2025882 | D7: -0.1564095589 | E7: 0 | F7: 0
A8: Senior engineer | B8: 196.58 | C8: 270.4557905 | D8: -0.2731529259 | E8: 0 | F8: 0
E9: Preliminary adjustment factor | F9: =SUM(F4:F8) -> -0.08809438007
E10: Labour composition | F10: 0.9
E11: Fee-based price adjustment | F11: =F9*F10 -> -0.07928494206
A13: AFTER HOURS ADJUSTMENTS
B14: Labour rates for 2020-21 ($June 021)
B15: Marsden Jacob | C15: Powercor | D15: Adjustment to labour category | E15: Labour weights for fee-based services | F15: Weighted adjustment
A16: Administrative officer | B16: =B4*1.75 -> 161.8925 | E16: 0.15 | F16: =E16*D16 -> 
A17: Field officer | B17: =B5*1.75 -> 299.845 | C17: 218.6690778 | D17: =IF(C17<=C5*1.75,0,C5*1.75/C17-1) -> 0 | E17: 0.85 | F17: 0
A18: Technical specialist | B18: =B6*1.75 -> 299.845 | C18: 245.6915916 | D18: =IF(C18<=C6*1.75,0,C6*1.75/C18-1) -> 0 | E18: 0 | F18: 0
A19: Engineer | B19: =B7*1.75 -> 263.0775 | C19: 238.7161528 | D19: =IF(C19<=C7*1.75,0,C7*1.75/C19-1) -> 0 | E19: 0 | F19: 0
A20: Senior engineer | B20: =B8*1.75 -> 344.015 | C20: 311.702 | D20: =IF(C20<=C8*1.75,0,C8*1.75/C20-1) -> 0 | E20: 0 | F20: 0
E21: Preliminary adjustment factor | F21: =SUM(F17:F20) -> 0
E22: Labour composition | F22: 0.9
E23: Fee-based price adjustment | F23: =F21*F22 -> 0

Sheet Revenue forecast
A1: Powercor Alternative Control Services forecast revenue | B1: Revenue
B2: $ June 2021
B3: 2021/22 | C3: 2022/23 | D3: 2023/24 | E3: 2024/25 | F3: 2025/26
A4: Basic connections fixed fee | B4: =SUM('Forecast charges BH'!P6:P8,'Forecast charges BH'!P10:P12)+SUM('Forecast charges AH'!P6:P8,'Forecast charges AH'!P10:P12) -> 15207091.59 | C4: =SUM('Forecast charges BH'!Q6:Q8,'Forecast charges BH'!Q10:Q12)+SUM('Forecast charges AH'!Q6:Q8,'Forecast charges AH'!Q10:Q12) -> 15028981.36 | D4: =SUM('Forecast charges BH'!R6:R8,'Forecast charges BH'!R10:R12)+SUM('Forecast charges AH'!R6:R8,'Forecast charges AH'!R10:R12) -> 15138662.86 | E4: =SUM('Forecast charges BH'!S6:S8,'Forecast charges BH'!S10:S12)+SUM('Forecast charges AH'!S6:S8,'Forecast charges AH'!S10:S12) -> 15137336.09 | F4: =SUM('Forecast charges BH'!T6:T8,'Forecast charges BH'!T10:T12)+SUM('Forecast charges AH'!T6:T8,'Forecast charges AH'!T10:T12) -> 15179406.16
A5: Metering and network ancilliary services fixed fee | B5: ='Forecast charges BH'!P38+'Forecast charges AH'!P36-B4 -> 7699640.99 | C5: ='Forecast charges BH'!Q38+'Forecast charges AH'!Q36-C4 -> 8037999.263 | D5: ='Forecast charges BH'!R38+'Forecast charges AH'!R36-D4 -> 8090576.343 | E5: ='Forecast charges BH'!S38+'Forecast charges AH'!S36-E4 -> 8144204.966 | F5: ='Forecast charges BH'!T38+'Forecast charges AH'!T36-F4 -> 8198906.16
A6: Quoted services | B6: =SUM('Quoted services RIN'!E11:E16) -> 6910710.388 | C6: =SUM('Quoted services RIN'!F11:F16) -> 6911277.863 | D6: =SUM('Quoted services RIN'!G11:G16) -> 6911854.427 | E6: =SUM('Quoted services RIN'!H11:H16) -> 6912374.405 | F6: =SUM('Quoted services RIN'!I11:I16) -> 6912850.698
A7: Total | B7: =SUM(B4:B6) -> 29817442.97 | C7: =SUM(C4:C6) -> 29978258.49 | D7: =SUM(D4:D6) -> 30141093.63 | E7: =SUM(E4:E6) -> 30193915.46 | F7: =SUM(F4:F6) -> 30291163.02

Sheet Forecast charges BH
A2: Business hours | B2: Charges | J2: Volumes | P2: Revenue
B3: $ June 2021 | P3: $ June 2021
A4: Basic connection services | B4: Powercor proposal 2021/22 | C4: AER draft decision 2021/22 | D4: 2022/23 | E4: 2023/24 | F4: 2024/25 | G4: 2025/26 | J4: 2021/22 | K4: 2022/23 | L4: 2023/24 | M4: 2024/25 | N4: 2025/26 | P4: 2021/22 | Q4: 2022/23 | R4: 2023/24 | S4: 2024/25 | T4: 2025/26
A5: New connection where we are the metering coordinator
A6: Single phase | B6: 550.4022719 | C6: =B6*(1+'AER adjustments'!$F$11) -> 506.7636597 | D6: =C6 -> 506.7636597 | E6: 506.7636597 | F6: 506.7636597 | G6: 506.7636597 | J6: 23129.77725 | K6: 22858.86714 | L6: 23025.68833 | M6: 23023.66578 | N6: 23087.64976 | P6: =J6*C6 -> 11721330.57 | Q6: 11584043.17 | R6: 11668582.08 | S6: 11667557.13 | T6: 11699981.89
A7: Multi-phase DC | B7: 681.6526625 | C7: =B7*(1+'AER adjustments'!$F$11) -> 627.6078706 | D7: 627.6078706 | E7: 627.6078706 | F7: 627.6078706 | G7: 627.6078706 | J7: 3919.272219 | K7: 3873.367303 | L7: 3901.634659 | M7: 3901.291944 | N7: 3912.13384 | P7: 2459766.092 | Q7: 2430955.805 | R7: 2448696.62 | S7: 2448481.529 | T7: 2455285.989
A8: Multi-phase CT | B8: 2668.968371 | C8: =B8*(1+'AER adjustments'!$F$11) -> 2457.359368 | D8: 2457.359368 | E8: 2457.359368 | F8: 2457.359368 | G8: 2457.359368 | J8: 391.2526483 | K8: 386.6700578 | L8: 389.491928 | M8: 389.4577155 | N8: 390.5400391 | P8: 961448.3607 | Q8: 950187.289 | R8: 957121.6382 | S8: 957037.5658 | T8: 959697.2238
A9: New connection where we are not the metering coordinator
A10: Single phase | B10: 514.8091402 | C10: =B10*(1+'AER adjustments'!$F$11) -> 473.9925273 | D10: =C10 -> 473.9925273 | E10: 473.9925273 | F10: 473.9925273 | G10: 473.9925273 | J10: 0 | K10: 0 | L10: 0 | M10: 0 | N10: 0 | P10: =J10*C10 -> 0 | Q10: 0 | R10: 0 | S10: 0 | T10: 0
A11: Multi-phase DC | B11: 646.0480528 | C11: =B11*(1+'AER adjustments'!$F$11) -> 594.8261704 | D11: 594.8261704 | E11: 594.8261704 | F11: 594.8261704 | G11: 594.8261704 | J11: 0 | K11: 0 | L11: 0 | M11: 0 | N11: 0 | P11: 0 | Q11: 0 | R11: 0 | S11: 0 | T11: 0
A12: Multi-phase CT | B12: 2282.666391 | C12: =B12*(1+'AER adjustments'!$F$11) -> 2101.685318 | D12: 2101.685318 | E12: 2101.685318 | F12: 2101.685318 | G12: 2101.685318 | J12: 0 | K12: 0 | L12: 0 | M12: 0 | N12: 0 | P12: 0 | Q12: 0 | R12: 0 | S12: 0 | T12: 0
A14: Metering and network ancillary services | B14: Powercor proposal 2021/22 | C14: AER draft decision 2021/22 | D14: 2022/23 | E14: 2023/24 | F14: 2024/25 | G14: 2025/26 | J14: 2021/22 | K14: 2022/23 | L14: 2023/24 | M14: 2024/25 | N14: 2025/26 | P14: 2021/22 | Q14: 2022/23 | R14: 2023/24 | S14: 2024/25 | T14: 2025/26
A15: Meter/NMI /site investigation | B15: 436.0474279 | C15: =B15*(1+'AER adjustments'!$F$11) -> 401.4754328 | D15: =C15 -> 401.4754328 | E15: 401.4754328 | F15: 401.4754328 | G15: 401.4754328 | J15: 3964 | K15: 4043.28 | L15: 4124.1456 | M15: 4206.628512 | N15: 4290.761082 | P15: =J15*C15 -> 1591448.616 | Q15: 1623277.588 | R15: 1655743.14 | S15: 1688858.003 | T15: 1722635.163
A16: Meter accuracy test | B16: 502.49 | C16: =B16*(1+'AER adjustments'!$F$11) -> 462.6501095 | D16: 462.6501095 | E16: 462.6501095 | F16: 462.6501095 | G16: 462.6501095 | J16: 100 | K16: 100 | L16: 100 | M16: 100 | N16: 100 | P16: 46265.01095 | Q16: 46265.01095 | R16: 46265.01095 | S16: 46265.01095 | T16: 46265.01095
A17: Meter accuracy test - additional meters | B17: N/A | C17: To be proposed by Powercor.
A18: Special reading | B18: 50.51447039 | C18: =B18*(1+'AER adjustments'!$F$11) -> 46.50943353 | D18: 46.50943353 | E18: 46.50943353 | F18: 46.50943353 | G18: 46.50943353 | J18: 667.9168457 | K18: 681.2751826 | L18: 694.9006863 | M18: 708.7987 | N18: 722.974674 | P18: 31064.43414 | Q18: 31685.72283 | R18: 32319.43728 | S18: 32965.82603 | T18: 33625.14255
A19: Service truck visit (Metering) | B19: N/A | C19: N/A | D19: N/A | E19: N/A | F19: N/A | G19: N/A | J19: N/A | K19: N/A | L19: N/A | M19: N/A | N19: N/A | P19: N/A | Q19: N/A | R19: N/A | S19: N/A | T19: N/A
A20: Wasted truck visit (Metering) | B20: N/A | C20: N/A | D20: N/A | E20: N/A | F20: N/A | G20: N/A | J20: N/A | K20: N/A | L20: N/A | M20: N/A | N20: N/A | P20: N/A | Q20: N/A | R20: N/A | S20: N/A | T20: N/A
A21: Remote meter reconfiguration | B21: 59.8804799 | C21: =B21*(1+'AER adjustments'!$F$11) -> 55.13285952 | D21: =C21 -> 55.13285952 | E21: =D21 -> 55.13285952 | F21: =E21 -> 55.13285952 | G21: =F21 -> 55.13285952 | J21: 16729.48521 | K21: =J21 -> 16729.48521 | L21: =K21 -> 16729.48521 | M21: =L21 -> 16729.48521 | N21: =M21 -> 16729.48521 | P21: =J21*C21 -> 922344.3577 | Q21: =K21*D21 -> 922344.3577 | R21: =L21*E21 -> 922344.3577 | S21: =M21*F21 -> 922344.3577 | T21: =N21*G21 -> 922344.3577
A22: Remote energisation | B22: N/A | C22: N/A | D22: N/A | E22: N/A | F22: N/A | G22: N/A | J22: N/A | K22: N/A | L22: N/A | M22: N/A | N22: N/A | P22: N/A | Q22: N/A | R22: N/A | S22: N/A | T22: N/A
A23: Remote de‑energisation | B23: N/A | C23: N/A | D23: N/A | E23: N/A | F23: N/A | G23: N/A | J23: N/A | K23: N/A | L23: N/A | M23: N/A | N23: N/A | P23: N/A | Q23: N/A | R23: N/A | S23: N/A | T23: N/A
A24: Acces to meter data | B24: N/A | C24: N/A | D24: N/A | E24: N/A | F24: N/A | G24: N/A | J24: N/A | K24: N/A | L24: N/A | M24: N/A | N24: N/A | P24: N/A | Q24: N/A | R24: N/A | S24: N/A | T24: N/A
A25: Manual re-energisation (incl customer transfer) | B25: 57.52749957 | C25: =B25*(1+'AER adjustments'!$F$11) -> 52.9664351 | D25: =C25 -> 52.9664351 | E25: 52.9664351 | F25: 52.9664351 | G25: 52.9664351 | J25: 10962.96448 | K25: 11182.22377 | L25: 11405.86824 | M25: 11633.98561 | N25: 11866.66532 | P25: =J25*C25 -> 580669.1465 | Q25: 592282.5294 | R25: 604128.18 | S25: 616210.7436 | T25: 628534.9584
A26: Manual re-energisation (same day) | B26: 93.75191869 | C26: =B26*(1+'AER adjustments'!$F$11) -> 86.31880325 | D26: 86.31880325 | E26: 86.31880325 | F26: 86.31880325 | G26: 86.31880325 | J26: 1682.550104 | K26: 1716.201106 | L26: 1750.525128 | M26: 1785.53563 | N26: 1821.246343 | P26: 145235.7114 | Q26: 148140.4256 | R26: 151103.2341 | S26: 154125.2988 | T26: 157207.8047
A27: Manual de-energisation | B27: 61.15453266 | C27: =B27*(1+'AER adjustments'!$F$11) -> 56.30589908 | D27: 56.30589908 | E27: 56.30589908 | F27: 56.30589908 | G27: 56.30589908 | J27: 4065.115276 | K27: 4146.417582 | L27: 4229.345933 | M27: 4313.932852 | N27: 4400.211509 | P27: 228889.9705 | Q27: 233467.7699 | R27: 238137.1253 | S27: 242899.8678 | T27: 247757.8652
A28: Service truck visit (Servicing) | B28: 687.0817342 | C28: =B28*(1+'AER adjustments'!$F$11) -> 632.6064987 | D28: N/A | E28: N/A | F28: N/A | G28: N/A | J28: N/A | K28: N/A | L28: N/A | M28: N/A | N28: N/A | P28: N/A | Q28: N/A | R28: N/A | S28: N/A | T28: N/A
A29: Wasted truck visit (Servicing) | B29: 377.9345527 | C29: =B29*(1+'AER adjustments'!$F$11) -> 347.9700336 | D29: N/A | E29: N/A | F29: N/A | G29: N/A | J29: N/A | K29: N/A | L29: N/A | M29: N/A | N29: N/A | P29: N/A | Q29: N/A | R29: N/A | S29: N/A | T29: N/A
A30: Failed field visit (simple tasks) | B30: N/A | C30: =C18 -> 46.50943353 | D30: =C30 -> 46.50943353 | E30: 46.50943353 | F30: 46.50943353 | G30: 46.50943353
A31: Isolation of supply or reconnection, excluding HV (single) | B31: ='New charges calc'!$C$27 -> 399.9833137 | C31: =B31*(1+'AER adjustments'!$F$11) -> 368.2706599 | D31: ='New charges calc'!D27 -> 399.9833137 | E31: ='New charges calc'!E27 -> 399.9833137 | F31: ='New charges calc'!F27 -> 399.9833137 | G31: ='New charges calc'!G27 -> 399.9833137 | J31: ='New charges calc'!C8 -> 689.8418675 | K31: ='New charges calc'!D8 -> 689.8418675 | L31: ='New charges calc'!E8 -> 689.8418675 | M31: ='New charges calc'!F8 -> 689.8418675 | N31: ='New charges calc'!G8 -> 689.8418675 | P31: =J31*C31 -> 254048.5197 | Q31: 275925.2361 | R31: 275925.2361 | S31: 275925.2361 | T31: 275925.2361
A32: Isolation of supply and reconnection after isolation, excluding HV (same day) | B32: ='New charges calc'!$C$29 -> 735.8846977 | C32: =B32*(1+'AER adjustments'!$F$11) -> 677.5401221 | D32: ='New charges calc'!D29 -> 735.8846977 | E32: ='New charges calc'!E29 -> 735.8846977 | F32: ='New charges calc'!F29 -> 735.8846977 | G32: ='New charges calc'!G29 -> 735.8846977 | J32: ='New charges calc'!C10 -> 325.0978916 | K32: ='New charges calc'!D10 -> 325.0978916 | L32: ='New charges calc'!E10 -> 325.0978916 | M32: ='New charges calc'!F10 -> 325.0978916 | N32: ='New charges calc'!G10 -> 325.0978916 | P32: 220266.8652 | Q32: 239234.5637 | R32: 239234.5637 | S32: 239234.5637 | T32: 239234.5637
A33: Standard alteration, <60 minutes | B33: ='New charges calc'!$C$28 -> 691.1865161 | C33: =B33*(1+'AER adjustments'!$F$11) -> 636.3858332 | D33: ='New charges calc'!D$28 -> 691.1865161 | E33: ='New charges calc'!E$28 -> 691.1865161 | F33: ='New charges calc'!F$28 -> 691.1865161 | G33: ='New charges calc'!G$28 -> 691.1865161 | J33: ='New charges calc'!C9 -> 3268.819654 | K33: ='New charges calc'!D9 -> 3268.819654 | L33: ='New charges calc'!E9 -> 3268.819654 | M33: ='New charges calc'!F9 -> 3268.819654 | N33: ='New charges calc'!G9 -> 3268.819654 | P33: 2080230.519 | Q33: 2259364.068 | R33: 2259364.068 | S33: 2259364.068 | T33: 2259364.068
A34: Complex alteration, > 60 minutes | B34: ='New charges calc'!$C$30 -> 859.0772471 | C34: =B34*(1+'AER adjustments'!$F$11) -> 790.9653574 | D34: ='New charges calc'!D$30 -> 859.0772471 | E34: ='New charges calc'!E$30 -> 859.0772471 | F34: ='New charges calc'!F$30 -> 859.0772471 | G34: ='New charges calc'!G$30 -> 859.0772471 | J34: ='New charges calc'!C11 -> 981.2405873 | K34: ='New charges calc'!D11 -> 981.2405873 | L34: ='New charges calc'!E11 -> 981.2405873 | M34: ='New charges calc'!F11 -> 981.2405873 | N34: ='New charges calc'!G11 -> 981.2405873 | P34: =J34*C34 -> 776127.3118 | Q34: 842961.4626 | R34: 842961.4626 | S34: 842961.4626 | T34: 842961.4626
A35: Failed field visit (unable to perform customer requested task) - complex tasks | B35: =$B$29 -> 377.9345527 | C35: =B35*(1+'AER adjustments'!$F$11) -> 347.9700336 | D35: =C35 -> 347.9700336 | E35: =D35 -> 347.9700336 | F35: =E35 -> 347.9700336 | G35: =F35 -> 347.9700336 | J35: 2041.31197 | K35: 2041.31197 | L35: 2041.31197 | M35: 2041.31197 | N35: 2041.31197 | P35: 710315.395 | Q35: 710315.395 | R35: 710315.395 | S35: 710315.395 | T35: 710315.395
A37: Total fee-based services BH | P37: 2021/22 | Q37: 2022/23 | R37: 2023/24 | S37: 2024/25 | T37: 2025/26
A38: Fee-based service BH | P38: =SUM(P25:P35,P15:P24,P6:P12) -> 22729450.88 | Q38: =SUM(Q25:Q35,Q15:Q24,Q6:Q12) -> 22890450.39 | R38: =SUM(R25:R35,R15:R24,R6:R12) -> 23052241.55 | S38: =SUM(S25:S35,S15:S24,S6:S12) -> 23104546.06 | T38: =SUM(T25:T35,T15:T24,T6:T12) -> 23201136.13

Sheet Forecast charges AH
A2: After hours | J2: Volumes | P2: Revenue
B3: $ June 2021 | P3: $ June 2021
A4: Basic connection services | B4: Powercor proposal 2021/22 | C4: AER draft decision 2021/22 | D4: 2022/23 | E4: 2023/24 | F4: 2024/25 | G4: 2025/26 | J4: 2021/22 | K4: 2022/23 | L4: 2023/24 | M4: 2024/25 | N4: 2025/26 | P4: 2021/22 | Q4: 2022/23 | R4: 2023/24 | S4: 2024/25 | T4: 2025/26
A5: New connection where we are the metering coordinator
A6: Single phase | B6: 616.8710967 | C6: =B6*(1+'AER adjustments'!$F$23) -> 616.8710967 | D6: =C6 -> 616.8710967 | E6: 616.8710967 | F6: 616.8710967 | G6: 616.8710967 | J6: 24.43590527 | K6: 24.15141502 | L6: 24.32837096 | M6: 24.32736621 | N6: 24.3959633 | P6: =J6*C6 -> 15073.80368 | Q6: 14898.30987 | R6: 15007.46888 | S6: 15006.84908 | T6: 15049.16463
A7: Multi-phase DC | B7: 748.1100094 | C7: =B7*(1+'AER adjustments'!$F$23) -> 748.1100094 | D7: 748.1100094 | E7: 748.1100094 | F7: 748.1100094 | G7: 748.1100094 | J7: 6.643672671 | K7: 6.566325011 | L7: 6.614436073 | M7: 6.614162899 | N7: 6.632813184 | P7: 4970.198024 | Q7: 4912.333466 | R7: 4948.325832 | S7: 4948.121469 | T7: 4962.073933
A8: Multi-phase CT | B8: 3310.172728 | C8: =B8*(1+'AER adjustments'!$F$23) -> 3310.172728 | D8: 3310.172728 | E8: 3310.172728 | F8: 3310.172728 | G8: 3310.172728 | J8: 13.44418261 | K8: 13.28766134 | L8: 13.38501922 | M8: 13.38446643 | N8: 13.42220727 | P8: 44502.56661 | Q8: 43984.45418 | R8: 44306.72559 | S8: 44304.89574 | T8: 44429.82446
A9: New connection where we are not the metering coordinator
A10: Single phase | B10: 575.0683925 | C10: =B10*(1+'AER adjustments'!$F$23) -> 575.0683925 | D10: =C10 -> 575.0683925 | E10: 575.0683925 | F10: 575.0683925 | G10: 575.0683925 | J10: 0 | K10: 0 | L10: 0 | M10: 0 | N10: 0 | P10: =J10*C10 -> 0 | Q10: 0 | R10: 0 | S10: 0 | T10: 0
A11: Multi-phase DC | B11: 706.3073052 | C11: =B11*(1+'AER adjustments'!$F$23) -> 706.3073052 | D11: 706.3073052 | E11: 706.3073052 | F11: 706.3073052 | G11: 706.3073052 | J11: 0 | K11: 0 | L11: 0 | M11: 0 | N11: 0 | P11: 0 | Q11: 0 | R11: 0 | S11: 0 | T11: 0
A12: Multi-phase CT | B12: 2589.644239 | C12: =B12*(1+'AER adjustments'!$F$23) -> 2589.644239 | D12: 2589.644239 | E12: 2589.644239 | F12: 2589.644239 | G12: 2589.644239 | J12: 0 | K12: 0 | L12: 0 | M12: 0 | N12: 0 | P12: 0 | Q12: 0 | R12: 0 | S12: 0 | T12: 0
A14: Metering and network ancillary services | B14: Powercor proposal 2021/22 | C14: AER draft decision 2021/22 | D14: 2022/23 | E14: 2023/24 | F14: 2024/25 | G14: 2025/26 | J14: 2021/22 | K14: 2022/23 | L14: 2023/24 | M14: 2024/25 | N14: 2025/26 | P14: 2021/22 | Q14: 2022/23 | R14: 2023/24 | S14: 2024/25 | T14: 2025/26
A15: Meter/NMI/site investigation | B15: 499.5434629 | C15: =B15*(1+'AER adjustments'!$F$23) -> 499.5434629 | D15: =C15 -> 499.5434629 | E15: 499.5434629 | F15: 499.5434629 | G15: 499.5434629 | J15: 0 | K15: 0 | L15: 0 | M15: 0 | N15: 0 | P15: =J15*C15 -> 0 | Q15: =K15*D15 -> 0 | R15: =L15*E15 -> 0 | S15: =M15*F15 -> 0 | T15: =N15*G15 -> 0
A16: Meter accuracy test | B16: 577.61 | C16: =B16*(1+'AER adjustments'!$F$23) -> 577.61 | D16: 577.61 | E16: 577.61 | F16: 577.61 | G16: 577.61 | J16: 0 | K16: 0 | L16: 0 | M16: 0 | N16: 0 | P16: =J16*C16 -> 0 | Q16: =K16*D16 -> 0 | R16: =L16*E16 -> 0 | S16: =M16*F16 -> 0 | T16: =N16*G16 -> 0
A17: Special reading | B17: N/A | C17: N/A | D17: N/A | E17: N/A | F17: N/A | G17: N/A | J17: N/A | K17: N/A | L17: N/A | M17: N/A | N17: N/A | P17: N/A | Q17: N/A | R17: N/A | S17: N/A | T17: N/A
A18: Service truck visit (Metering) | B18: N/A | C18: N/A | D18: N/A | E18: N/A | F18: N/A | G18: N/A | J18: N/A | K18: N/A | L18: N/A | M18: N/A | N18: N/A | P18: N/A | Q18: N/A | R18: N/A | S18: N/A | T18: N/A
A19: Wasted truck visit (Metering) | B19: N/A | C19: N/A | D19: N/A | E19: N/A | F19: N/A | G19: N/A | J19: N/A | K19: N/A | L19: N/A | M19: N/A | N19: N/A | P19: N/A | Q19: N/A | R19: N/A | S19: N/A | T19: N/A
A20: Remote meter reconfiguration | B20: N/A | C20: =B20 -> N/A | D20: =C20 -> N/A | E20: =D20 -> N/A | F20: =E20 -> N/A | G20: =F20 -> N/A | J20: N/A | K20: N/A | L20: N/A | M20: N/A | N20: N/A | P20: N/A | Q20: N/A | R20: N/A | S20: N/A | T20: N/A
A21: Remote re‑energisation | B21: N/A | C21: N/A | D21: N/A | E21: N/A | F21: N/A | G21: N/A | J21: N/A | K21: N/A | L21: N/A | M21: N/A | N21: N/A | P21: N/A | Q21: N/A | R21: N/A | S21: N/A | T21: N/A
A22: Remote de‑energisation | B22: N/A | C22: N/A | D22: N/A | E22: N/A | F22: N/A | G22: N/A | J22: N/A | K22: N/A | L22: N/A | M22: N/A | N22: N/A | P22: N/A | Q22: N/A | R22: N/A | S22: N/A | T22: N/A
A23: Access to meter data | B23: N/A | C23: =B23 -> N/A | D23: N/A | E23: N/A | F23: N/A | G23: N/A | J23: N/A | K23: N/A | L23: N/A | M23: N/A | N23: N/A | P23: N/A | Q23: N/A | R23: N/A | S23: N/A | T23: N/A
A24: Manual re-energisation (incl customer transfer) | B24: N/A | C24: =B24 -> N/A | D24: N/A | E24: N/A | F24: N/A | G24: N/A | J24: N/A | K24: N/A | L24: N/A | M24: N/A | N24: N/A | P24: N/A | Q24: N/A | R24: N/A | S24: N/A | T24: N/A
A25: Manual re-energisation (same day) | B25: N/A | C25: N/A | D25: N/A | E25: N/A | F25: N/A | G25: N/A | J25: N/A | K25: N/A | L25: N/A | M25: N/A | N25: N/A | P25: N/A | Q25: N/A | R25: N/A | S25: N/A | T25: N/A
A26: Manual de-energisation | B26: N/A | C26: N/A | D26: N/A | E26: N/A | F26: N/A | G26: N/A | J26: N/A | K26: N/A | L26: N/A | M26: N/A | N26: N/A | P26: N/A | Q26: N/A | R26: N/A | S26: N/A | T26: N/A
A27: Service truck visit (Servicing) | B27: 825.7239264 | C27: N/A | D27: N/A | E27: N/A | F27: N/A | G27: N/A | J27: N/A | K27: N/A | L27: N/A | M27: N/A | N27: N/A | P27: N/A | Q27: N/A | R27: N/A | S27: N/A | T27: N/A
A28: Wasted truck visit (Servicing) | B28: 436.6787153 | C28: N/A | D28: N/A | E28: N/A | F28: N/A | G28: N/A | J28: N/A | K28: N/A | L28: N/A | M28: N/A | N28: N/A | P28: N/A | Q28: N/A | R28: N/A | S28: N/A | T28: N/A
A29: Isolation of supply or reconnection, excluding HV (single) | B29: ='New charges calc'!$C$57 -> 509.0363022 | C29: =B29*(1+'AER adjustments'!$F$23) -> 509.0363022 | D29: ='New charges calc'!D57 -> 509.0363022 | E29: ='New charges calc'!E57 -> 509.0363022 | F29: ='New charges calc'!F57 -> 509.0363022 | G29: ='New charges calc'!G57 -> 509.0363022 | J29: ='New charges calc'!C38 -> 33.17073171 | K29: ='New charges calc'!D38 -> 33.17073171 | L29: ='New charges calc'!E38 -> 33.17073171 | M29: ='New charges calc'!F38 -> 33.17073171 | N29: ='New charges calc'!G38 -> 33.17073171 | P29: =J29*C29 -> 16885.10661 | Q29: =K29*D29 -> 16885.10661 | R29: =L29*E29 -> 16885.10661 | S29: =M29*F29 -> 16885.10661 | T29: =N29*G29 -> 16885.10661
A30: Isolation of supply and reconnection after isolation, excluding HV (same day) | B30: N/A | C30: N/A | D30: N/A | E30: N/A | F30: N/A | G30: N/A | J30: N/A | K30: N/A | L30: N/A | M30: N/A | N30: N/A | P30: N/A | Q30: N/A | R30: N/A | S30: N/A | T30: N/A
A31: Standard alteration, <60 minutes | B31: ='New charges calc'!$C$58 -> 879.6342652 | C31: =B31*(1+'AER adjustments'!$F$23) -> 879.6342652 | D31: ='New charges calc'!D$58 -> 879.6342652 | E31: ='New charges calc'!E$58 -> 879.6342652 | F31: ='New charges calc'!F$58 -> 879.6342652 | G31: ='New charges calc'!G$58 -> 879.6342652 | J31: ='New charges calc'!C39 -> 79.6097561 | K31: ='New charges calc'!D39 -> 79.6097561 | L31: ='New charges calc'!E39 -> 79.6097561 | M31: ='New charges calc'!F39 -> 79.6097561 | N31: ='New charges calc'!G39 -> 79.6097561 | P31: =J31*C31 -> 70027.46931 | Q31: 70027.46931 | R31: 70027.46931 | S31: 70027.46931 | T31: 70027.46931
A32: Complex alteration, > 60 minutes | B32: ='New charges calc'!$C$60 -> 1093.299371 | C32: =B32*(1+'AER adjustments'!$F$23) -> 1093.299371 | D32: ='New charges calc'!D$60 -> 1093.299371 | E32: ='New charges calc'!E$60 -> 1093.299371 | F32: ='New charges calc'!F$60 -> 1093.299371 | G32: ='New charges calc'!G$60 -> 1093.299371 | J32: ='New charges calc'!C41 -> 23.2195122 | K32: ='New charges calc'!D41 -> 23.2195122 | L32: ='New charges calc'!E41 -> 23.2195122 | M32: ='New charges calc'!F41 -> 23.2195122 | N32: ='New charges calc'!G41 -> 23.2195122 | P32: 25385.87807 | Q32: 25385.87807 | R32: 25385.87807 | S32: 25385.87807 | T32: 25385.87807
A33: Failed field visit (unable to perform customer requested task) | B33: =$B$28 -> 436.6787153 | C33: =B33*(1+'AER adjustments'!$F$23) -> 436.6787153 | D33: =C33 -> 436.6787153 | E33: =D33 -> 436.6787153 | F33: =E33 -> 436.6787153 | G33: =F33 -> 436.6787153 | J33: 1 | K33: 1 | L33: 1 | M33: 1 | N33: 1 | P33: 436.6787153 | Q33: 436.6787153 | R33: 436.6787153 | S33: 436.6787153 | T33: 436.6787153
A35: Total fee-based services AH | P35: 2021/22 | Q35: 2022/23 | R35: 2023/24 | S35: 2024/25 | T35: 2025/26
A36: Fee-based service AH | P36: =SUM(P24:P33,P15:P23,P6:P12) -> 177281.701 | Q36: =SUM(Q24:Q33,Q15:Q23,Q6:Q12) -> 176530.2302 | R36: =SUM(R24:R33,R15:R23,R6:R12) -> 176997.653 | S36: =SUM(S24:S33,S15:S23,S6:S12) -> 176994.999 | T36: =SUM(T24:T33,T15:T23,T6:T12) -> 177176.1957

Sheet New charges calc
A2: Business hours
A4: All services previously classified as service truck visits | C4: 2021/22 | D4: 2022/23 | E4: 2023/24 | F4: 2024/25 | G4: 2025/26
A5: Revenue | B5: $2021 | C5: =C12*'Forecast charges BH'!B28 -> 3617485.33 | D5: =C5 -> 3617485.33 | E5: =D5 -> 3617485.33 | F5: =E5 -> 3617485.33 | G5: =F5 -> 3617485.33
A7: Volumes break-down | C7: 2021/22 | D7: 2022/23 | E7: 2023/24 | F7: 2024/25 | G7: 2025/26
A8: Isolation of supply or reconnection, excluding HV (single) | B8: Number | C8: 689.8418675 | D8: =C8 -> 689.8418675 | E8: 689.8418675 | F8: 689.8418675 | G8: 689.8418675
A9: Standard alteration, <60 minutes | B9: Number | C9: 3268.819654 | D9: 3268.819654 | E9: 3268.819654 | F9: 3268.819654 | G9: 3268.819654
A10: Isolation of supply and reconnection after isolation, excluding HV (same day) | B10: Number | C10: 325.0978916 | D10: 325.0978916 | E10: 325.0978916 | F10: 325.0978916 | G10: 325.0978916
A11: Complex alteration, > 60 minutes | B11: Number | C11: 981.2405873 | D11: 981.2405873 | E11: 981.2405873 | F11: 981.2405873 | G11: 981.2405873
A12: Total | B12: Number | C12: 5265 | D12: 5265 | E12: 5265 | F12: 5265 | G12: 5265
A14: Price weighted volumes | C14: 2021/22 | D14: 2022/23 | E14: 2023/24 | F14: 2024/25 | G14: 2025/26 | J14: Price ratio
A15: Isolation of supply or reconnection, excluding HV (single) | B15: $2021 | C15: =C8*J15 -> 689.8418675 | D15: =C15 -> 689.8418675 | E15: 689.8418675 | F15: 689.8418675 | G15: 689.8418675 | J15: 1
A16: Standard alteration, <60 minutes | B16: $2021 | C16: =C9*J16 -> 5648.645808 | D16: 5648.645808 | E16: 5648.645808 | F16: 5648.645808 | G16: 5648.645808 | J16: 1.728038377
A17: Isolation of supply and reconnection after isolation, excluding HV (same day) | B17: $2021 | C17: =C10*J17 -> 598.1113598 | D17: 598.1113598 | E17: 598.1113598 | F17: 598.1113598 | G17: 598.1113598 | J17: 1.839788492
A18: Complex alteration, > 60 minutes | B18: $2021 | C18: =C11*J18 -> 2107.491572 | D18: 2107.491572 | E18: 2107.491572 | F18: 2107.491572 | G18: 2107.491572 | J18: 2.147782714
A20: Revenue per service | C20: 2021/22 | D20: 2022/23 | E20: 2023/24 | F20: 2024/25 | G20: 2025/26
A21: Isolation of supply or reconnection, excluding HV (single) | B21: $2021 | C21: =C$5/(C$15+C$16+C$17+C$18)*C15 -> 275925.2361 | D21: =C21 -> 275925.2361 | E21: 275925.2361 | F21: 275925.2361 | G21: 275925.2361
A22: Standard alteration, <60 minutes | B22: $2021 | C22: =C$5/(C$15+C$16+C$17+C$18)*C16 -> 2259364.068 | D22: 2259364.068 | E22: 2259364.068 | F22: 2259364.068 | G22: 2259364.068
A23: Isolation of supply and reconnection after isolation, excluding HV (same day) | B23: $2021 | C23: =C$5/(C$15+C$16+C$17+C$18)*C17 -> 239234.5637 | D23: 239234.5637 | E23: 239234.5637 | F23: 239234.5637 | G23: 239234.5637
A24: Complex alteration, > 60 minutes | B24: $2021 | C24: =C$5/(C$15+C$16+C$17+C$18)*C18 -> 842961.4626 | D24: 842961.4626 | E24: 842961.4626 | F24: 842961.4626 | G24: 842961.4626
A26: Weighted service charges | C26: 2021/22 | D26: 2022/23 | E26: 2023/24 | F26: 2024/25 | G26: 2025/26
A27: Isolation of supply or reconnection, excluding HV (single) | B27: $2021 | C27: =C21/C8 -> 399.9833137 | D27: =C27 -> 399.9833137 | E27: 399.9833137 | F27: 399.9833137 | G27: 399.9833137
A28: Standard alteration, <60 minutes | B28: $2021 | C28: =C22/C9 -> 691.1865161 | D28: 691.1865161 | E28: 691.1865161 | F28: 691.1865161 | G28: 691.1865161
A29: Isolation of supply and reconnection after isolation, excluding HV (same day) | B29: $2021 | C29: =C23/C10 -> 735.8846977 | D29: 735.8846977 | E29: 735.8846977 | F29: 735.8846977 | G29: 735.8846977
A30: Complex alteration, > 60 minutes | B30: $2021 | C30: =C24/C11 -> 859.0772471 | D30: 859.0772471 | E30: 859.0772471 | F30: 859.0772471 | G30: 859.0772471
A32: After hours
A34: All services previously classified as service truck visits | C34: 2021/22 | D34: 2022/23 | E34: 2023/24 | F34: 2024/25 | G34: 2025/26
A35: Revenue | B35: $2021 | C35: =C42*'Forecast charges AH'!B27 -> 112298.454 | D35: =C35 -> 112298.454 | E35: =D35 -> 112298.454 | F35: =E35 -> 112298.454 | G35: =F35 -> 112298.454
A37: Volumes break-down | C37: 2021/22 | D37: 2022/23 | E37: 2023/24 | F37: 2024/25 | G37: 2025/26
A38: Isolation of supply or reconnection, excluding HV (single) | B38: Number | C38: 33.17073171 | D38: =C38 -> 33.17073171 | E38: 33.17073171 | F38: 33.17073171 | G38: 33.17073171
A39: Standard alteration, <60 minutes | B39: Number | C39: 79.6097561 | D39: 79.6097561 | E39: 79.6097561 | F39: 79.6097561 | G39: 79.6097561
A40: Isolation of supply and reconnection after isolation, excluding HV (same day) | B40: Number | C40: N/A | D40: N/A | E40: N/A | F40: N/A | G40: N/A
A41: Complex alteration, > 60 minutes | B41: Number | C41: 23.2195122 | D41: 23.2195122 | E41: 23.2195122 | F41: 23.2195122 | G41: 23.2195122
A42: Total | B42: Number | C42: 136 | D42: 136 | E42: 136 | F42: 136 | G42: 136
A44: Price weighted volumes | C44: 2021/22 | D44: 2022/23 | E44: 2023/24 | F44: 2024/25 | G44: 2025/26 | J44: Price ratio
A45: Isolation of supply or reconnection, excluding HV (single) | B45: $2021 | C45: =C38*J45 -> 33.17073171 | D45: =C45 -> 33.17073171 | E45: 33.17073171 | F45: 33.17073171 | G45: 33.17073171 | J45: 1
A46: Standard alteration, <60 minutes | B46: $2021 | C46: =C39*J46 -> 137.5687137 | D46: 137.5687137 | E46: 137.5687137 | F46: 137.5687137 | G46: 137.5687137 | J46: 1.728038377
A47: Isolation of supply and reconnection after isolation, excluding HV (same day) | B47: $2021 | C47: N/A | D47: N/A | E47: N/A | F47: N/A | G47: N/A | J47: N/A
A48: Complex alteration, > 60 minutes | B48: $2021 | C48: =C41*J48 -> 49.87046692 | D48: 49.87046692 | E48: 49.87046692 | F48: 49.87046692 | G48: 49.87046692 | J48: 2.147782714
A50: Revenue per service | C50: 2021/22 | D50: 2022/23 | E50: 2023/24 | F50: 2024/25 | G50: 2025/26
A51: Isolation of supply or reconnection, excluding HV (single) | B51: $2021 | C51: =C$35/(C$45+C$46+C$48)*C45 -> 16885.10661 | D51: =C51 -> 16885.10661 | E51: 16885.10661 | F51: 16885.10661 | G51: 16885.10661
A52: Standard alteration, <60 minutes | B52: $2021 | C52: =C$35/(C$45+C$46+C$48)*C46 -> 70027.46931 | D52: 70027.46931 | E52: 70027.46931 | F52: 70027.46931 | G52: 70027.46931
A53: Isolation of supply and reconnection after isolation, excluding HV (same day) | B53: $2021 | C53: N/A | D53: N/A | E53: N/A | F53: N/A | G53: N/A
A54: Complex alteration, > 60 minutes | B54: $2021 | C54: =C$35/(C$45+C$46+C$48)*C48 -> 25385.87807 | D54: 25385.87807 | E54: 25385.87807 | F54: 25385.87807 | G54: 25385.87807
A56: Weighted service charges | C56: 2021/22 | D56: 2022/23 | E56: 2023/24 | F56: 2024/25 | G56: 2025/26
A57: Isolation of supply or reconnection, excluding HV (single) | B57: $2021 | C57: =C51/C38 -> 509.0363022 | D57: =C57 -> 509.0363022 | E57: 509.0363022 | F57: 509.0363022 | G57: 509.0363022
A58: Standard alteration, <60 minutes | B58: $2021 | C58: =C52/C39 -> 879.6342652 | D58: 879.6342652 | E58: 879.6342652 | F58: 879.6342652 | G58: 879.6342652
A59: Isolation of supply and reconnection after isolation, excluding HV (same day) | B59: $2021 | C59: N/A | D59: N/A | E59: N/A | F59: N/A | G59: N/A
A60: Complex alteration, > 60 minutes | B60: $2021 | C60: =C54/C41 -> 1093.299371 | D60: 1093.299371 | E60: 1093.299371 | F60: 1093.299371 | G60: 1093.299371

Sheet Fee-based services RIN
B1: REGULATORY REPORTING STATEMENT
B2: CitiPower
B3: 2021-22 to 2025-26
B4: 4.3 ANCILLARY SERVICES - FEE BASED SERVICES
B6: There are TWO tables on this worksheet. The COLUMNS representing each table have been 'grouped' for easy navigation. See the Instructions sheet on how to group or ungroup data.
B8: 4.3.1 - COST METRICS FOR FEE-BASED SERVICES
B9: SERVICE SUBCATEGORY | C9: EXPENDITURE ($0's, real June 2021) | J9: VOLUMES (0's)
C10: 2019-20 | D10: 2020-21 | E10: 2021-22 | F10: 2022-23 | G10: 2023-24 | H10: 2024-25 | I10: 2025-26 | J10: 2019-20 | K10: 2020-21 | L10: 2021-22 | M10: 2022-23 | N10: 2023-24 | O10: 2024-25 | P10: 2025-26
B11: COMMON FEE-BASED SERVICES
B12: Energisation
B13: De-energisation | C13: 235084.0546 | D13: 240313.2643 | E13: =SUM('Forecast charges BH'!P27) -> 228889.9705 | F13: =SUM('Forecast charges BH'!Q27) -> 233467.7699 | G13: =SUM('Forecast charges BH'!R27) -> 238137.1253 | H13: =SUM('Forecast charges BH'!S27) -> 242899.8678 | I13: =SUM('Forecast charges BH'!T27) -> 247757.8652 | J13: 3907.261896 | K13: 3985.407134 | L13: ='Forecast charges BH'!J27 -> 4065.115276 | M13: ='Forecast charges BH'!K27 -> 4146.417582 | N13: ='Forecast charges BH'!L27 -> 4229.345933 | O13: ='Forecast charges BH'!M27 -> 4313.932852 | P13: ='Forecast charges BH'!N27 -> 4400.211509
B14: Re-energisation | C14: 687913.2267 | D14: 703215.1685 | E14: =SUM('Forecast charges BH'!P25:P26) -> 725904.8578 | F14: =SUM('Forecast charges BH'!Q25:Q26) -> 740422.955 | G14: =SUM('Forecast charges BH'!R25:R26) -> 755231.4141 | H14: =SUM('Forecast charges BH'!S25:S26) -> 770336.0423 | I14: =SUM('Forecast charges BH'!T25:T26) -> 785742.7632 | J14: 12154 | K14: 12398 | L14: =SUM('Forecast charges BH'!J25:J26) -> 12645.51458 | M14: =SUM('Forecast charges BH'!K25:K26) -> 12898.42487 | N14: =SUM('Forecast charges BH'!L25:L26) -> 13156.39337 | O14: =SUM('Forecast charges BH'!M25:M26) -> 13419.52124 | P14: =SUM('Forecast charges BH'!N25:N26) -> 13687.91166
B15: MISCELLANEOUS FEE-BASED SERVICES
B16: Meter/NMI /site investigation | C16: 1642067.404 | D16: 1677256.431 | E16: ='Forecast charges BH'!P15 -> 1591448.616 | F16: ='Forecast charges BH'!Q15 -> 1623277.588 | G16: ='Forecast charges BH'!R15 -> 1655743.14 | H16: ='Forecast charges BH'!S15 -> 1688858.003 | I16: ='Forecast charges BH'!T15 -> 1722635.163 | J16: 3865 | K16: 3925 | L16: ='Forecast charges BH'!J15 -> 3964 | M16: ='Forecast charges BH'!K15 -> 4043.28 | N16: ='Forecast charges BH'!L15 -> 4124.1456 | O16: ='Forecast charges BH'!M15 -> 4206.628512 | P16: ='Forecast charges BH'!N15 -> 4290.761082
B17: Meter accuracy test | C17: 47363.73306 | D17: 47467.93327 | E17: ='Forecast charges BH'!P16 -> 46265.01095 | F17: ='Forecast charges BH'!Q16 -> 46265.01095 | G17: ='Forecast charges BH'!R16 -> 46265.01095 | H17: ='Forecast charges BH'!S16 -> 46265.01095 | I17: ='Forecast charges BH'!T16 -> 46265.01095 | J17: 100 | K17: 100 | L17: ='Forecast charges BH'!J16 -> 100 | M17: ='Forecast charges BH'!K16 -> 100 | N17: ='Forecast charges BH'!L16 -> 100 | O17: ='Forecast charges BH'!M16 -> 100 | P17: ='Forecast charges BH'!N16 -> 100
B18: Special reading | C18: 33194.04665 | D18: 33267.07355 | E18: ='Forecast charges BH'!P18 -> 31064.43414 | F18: ='Forecast charges BH'!Q18 -> 31685.72283 | G18: ='Forecast charges BH'!R18 -> 32319.43728 | H18: ='Forecast charges BH'!S18 -> 32965.82603 | I18: ='Forecast charges BH'!T18 -> 33625.14255 | J18: 667.9168457 | K18: 667.9168457 | L18: ='Forecast charges BH'!J18 -> 667.9168457 | M18: ='Forecast charges BH'!K18 -> 681.2751826 | N18: ='Forecast charges BH'!L18 -> 694.9006863 | O18: ='Forecast charges BH'!M18 -> 708.7987 | P18: ='Forecast charges BH'!N18 -> 722.974674
B19: Service truck visit | C19: 3678178 | D19: 3696970 | E19: 0 | F19: 0 | G19: 0 | H19: 0 | I19: 0 | J19: 5207 | K19: 5207 | L19: 0 | M19: 0 | N19: 0 | O19: 0 | P19: 0
B20: Wasted truck visit | C20: 247940 | D20: 795990 | E20: 0 | F20: 0 | G20: 0 | H20: 0 | I20: 0 | J20: 644 | K20: 2041 | L20: 0 | M20: 0 | N20: 0 | O20: 0 | P20: 0
B21: Remote meter reconfiguration | C21: 962071.6225 | D21: 981705.7373 | E21: ='Forecast charges BH'!P21 -> 922344.3577 | F21: ='Forecast charges BH'!Q21 -> 922344.3577 | G21: ='Forecast charges BH'!R21 -> 922344.3577 | H21: ='Forecast charges BH'!S21 -> 922344.3577 | I21: ='Forecast charges BH'!T21 -> 922344.3577 | J21: 16729 | K21: 16729 | L21: ='Forecast charges BH'!J21 -> 16729.48521 | M21: ='Forecast charges BH'!K21 -> 16729.48521 | N21: ='Forecast charges BH'!L21 -> 16729.48521 | O21: ='Forecast charges BH'!M21 -> 16729.48521 | P21: ='Forecast charges BH'!N21 -> 16729.48521
B22: Remote re‑energisation | C22: 778287.5287 | D22: 858282.8138 | E22: 0 | F22: 0 | G22: 0 | H22: 0 | I22: 0 | J22: 70042 | K22: 77071.61954 | L22: 0 | M22: 0 | N22: 0 | O22: 0 | P22: 0
B23: Remote de‑energisation | C23: 645824.6403 | D23: 757619.563 | J23: 58121 | K23: 68032.31497 | L23: 0 | M23: 0 | N23: 0 | O23: 0 | P23: 0
B24: Isolation of supply or reconnection, excluding HV (single) | E24: ='Forecast charges BH'!P31+'Forecast charges AH'!P29 -> 270933.6263 | F24: ='Forecast charges BH'!Q31+'Forecast charges AH'!Q29 -> 292810.3427 | G24: ='Forecast charges BH'!R31+'Forecast charges AH'!R29 -> 292810.3427 | H24: ='Forecast charges BH'!S31+'Forecast charges AH'!S29 -> 292810.3427 | I24: ='Forecast charges BH'!T31+'Forecast charges AH'!T29 -> 292810.3427 | L24: ='Forecast charges BH'!J31+'Forecast charges AH'!J29 -> 723.0125992 | M24: ='Forecast charges BH'!K31+'Forecast charges AH'!K29 -> 723.0125992 | N24: ='Forecast charges BH'!L31+'Forecast charges AH'!L29 -> 723.0125992 | O24: ='Forecast charges BH'!M31+'Forecast charges AH'!M29 -> 723.0125992 | P24: ='Forecast charges BH'!N31+'Forecast charges AH'!N29 -> 723.0125992
B25: Isolation of supply and reconnection after isolation, excluding HV (same day) | E25: ='Forecast charges BH'!P32 -> 220266.8652 | F25: ='Forecast charges BH'!Q32 -> 239234.5637 | G25: ='Forecast charges BH'!R32 -> 239234.5637 | H25: ='Forecast charges BH'!S32 -> 239234.5637 | I25: ='Forecast charges BH'!T32 -> 239234.5637 | L25: ='Forecast charges BH'!J32 -> 325.0978916 | M25: ='Forecast charges BH'!K32 -> 325.0978916 | N25: ='Forecast charges BH'!L32 -> 325.0978916 | O25: ='Forecast charges BH'!M32 -> 325.0978916 | P25: ='Forecast charges BH'!N32 -> 325.0978916
B26: Standard alteration, <60 minutes | E26: ='Forecast charges BH'!P33+'Forecast charges AH'!P31 -> 2150257.988 | F26: ='Forecast charges BH'!Q33+'Forecast charges AH'!Q31 -> 2329391.537 | G26: ='Forecast charges BH'!R33+'Forecast charges AH'!R31 -> 2329391.537 | H26: ='Forecast charges BH'!S33+'Forecast charges AH'!S31 -> 2329391.537 | I26: ='Forecast charges BH'!T33+'Forecast charges AH'!T31 -> 2329391.537 | L26: ='Forecast charges BH'!J33+'Forecast charges AH'!J31 -> 3348.42941 | M26: ='Forecast charges BH'!K33+'Forecast charges AH'!K31 -> 3348.42941 | N26: ='Forecast charges BH'!L33+'Forecast charges AH'!L31 -> 3348.42941 | O26: ='Forecast charges BH'!M33+'Forecast charges AH'!M31 -> 3348.42941 | P26: ='Forecast charges BH'!N33+'Forecast charges AH'!N31 -> 3348.42941
B27: Complex alteration, > 60 minutes | E27: ='Forecast charges BH'!P34+'Forecast charges AH'!P32 -> 801513.1899 | F27: ='Forecast charges BH'!Q34+'Forecast charges AH'!Q32 -> 868347.3406 | G27: ='Forecast charges BH'!R34+'Forecast charges AH'!R32 -> 868347.3406 | H27: ='Forecast charges BH'!S34+'Forecast charges AH'!S32 -> 868347.3406 | I27: ='Forecast charges BH'!T34+'Forecast charges AH'!T32 -> 868347.3406 | L27: ='Forecast charges BH'!J34+'Forecast charges AH'!J32 -> 1004.4601 | M27: ='Forecast charges BH'!K34+'Forecast charges AH'!K32 -> 1004.4601 | N27: ='Forecast charges BH'!L34+'Forecast charges AH'!L32 -> 1004.4601 | O27: ='Forecast charges BH'!M34+'Forecast charges AH'!M32 -> 1004.4601 | P27: ='Forecast charges BH'!N34+'Forecast charges AH'!N32 -> 1004.4601
B28: Failed field visit (unable to perform customer requested task) | E28: ='Forecast charges AH'!P33+'Forecast charges BH'!P35 -> 710752.0737 | F28: ='Forecast charges AH'!Q33+'Forecast charges BH'!Q35 -> 710752.0737 | G28: ='Forecast charges AH'!R33+'Forecast charges BH'!R35 -> 710752.0737 | H28: ='Forecast charges AH'!S33+'Forecast charges BH'!S35 -> 710752.0737 | I28: ='Forecast charges AH'!T33+'Forecast charges BH'!T35 -> 710752.0737 | L28: ='Forecast charges BH'!J35+'Forecast charges AH'!J33 -> 2042.31197 | M28: ='Forecast charges BH'!K35+'Forecast charges AH'!K33 -> 2042.31197 | N28: ='Forecast charges BH'!L35+'Forecast charges AH'!L33 -> 2042.31197 | O28: ='Forecast charges BH'!M35+'Forecast charges AH'!M33 -> 2042.31197 | P28: ='Forecast charges BH'!N35+'Forecast charges AH'!N33 -> 2042.31197

Sheet Quoted services RIN
B1: REGULATORY REPORTING STATEMENT
B2: Powercor
B3: 2021-22 to 2025-26
B4: 4.4 ANCILLARY SERVICES - QUOTED SERVICES
B6: There are TWO tables on this worksheet. The COLUMNS representing each table have been 'grouped' for easy navigation. See the Instructions sheet on how to group or ungroup data.
B8: 4.4.1 - COST METRICS FOR QUOTED SERVICES
B9: SERVICE SUBCATEGORY | C9: EXPENDITURE ($0's, real June 2021) | J9: VOLUMES (0's)
C10: 2019-20 | D10: 2020-21 | E10: 2021-22 | F10: 2022-23 | G10: 2023-24 | H10: 2024-25 | I10: 2025-26 | J10: 2019-20 | K10: 2020-21 | L10: 2021-22 | M10: 2022-23 | N10: 2023-24 | O10: 2024-25 | P10: 2025-26
B11: Audit design and construction | C11: 2641732.833 | D11: 2738447.993 | E11: 2738447.993 | F11: 2738447.993 | G11: 2738447.993 | H11: 2738447.993 | I11: 2738447.993 | J11: 1279 | K11: 1279 | L11: 1279 | M11: 1279 | N11: 1279 | O11: 1279 | P11: 1279
B12: Specification and design enquiry | C12: 3179852.151 | D12: 3296268.128 | E12: 3296268.128 | F12: 3296268.128 | G12: 3296268.128 | H12: 3296268.128 | I12: 3296268.128 | J12: 436 | K12: 436 | L12: 436 | M12: 436 | N12: 436 | O12: 436 | P12: 436
B13: High load escorts–surveying and lifting overhead lines | C13: 139947.7734 | D13: 145071.3313 | E13: 145071.3313 | F13: 145071.3313 | G13: 145071.3313 | H13: 145071.3313 | I13: 145071.3313 | J13: 30 | K13: 30 | L13: 30 | M13: 30 | N13: 30 | O13: 30 | P13: 30
B14: No-go zone safety-related services | C14: 403125.2757 | D14: 417883.8936 | E14: 417883.8936 | F14: 417883.8936 | G14: 417883.8936 | H14: 417883.8936 | I14: 417883.8936 | J14: 248 | K14: 248 | L14: 248 | M14: 248 | N14: 248 | O14: 248 | P14: 248
B15: Elective undergrounding | C15: 276782.8418 | D15: 286916 | E15: 286916 | F15: 286916 | G15: 286916 | H15: 286916 | I15: 286916 | J15: 74 | K15: 74 | L15: 74 | M15: 74 | N15: 74 | O15: 74 | P15: 74
B16: Reserve feeder maintenance | C16: 24705.43004 | D16: 25609.90818 | E16: 26123.04187 | F16: 26690.51746 | G16: 27267.08094 | H16: 27787.05926 | I16: 28263.35189 | J16: 4 | K16: 4 | L16: 4 | M16: 4 | N16: 4 | O16: 4 | P16: 4
